bitfinex-derivatives/quotes_BNBF0:USTF0_20250302
["timestamp","ask_amount","ask_price","bid_price","bid_amount"]
[1740925444002,1.10934065,603.66,603.03,0.33165845]
[1740925444202,1.10934065,603.66,603.03,1.65665845]
[1740925444806,1.5723526,603.65,603.03,1.65665845]
[1740925445614,1.10934065,603.66,603.03,1.65665845]
[1740925445811,1.57222598,603.64,603.03,1.65665845]
[1740925446011,1.57222598,603.65,603.03,1.65665845]
[1740925446911,1.10934065,603.66,603.03,1.65665845]
[1740925447114,3.8123947,603.65,603.03,1.65665845]
[1740925447705,3.8123947,603.64,603.03,1.65665845]
[1740925447909,3.8123947,603.63,603.03,1.65665845]
[1740925448107,4.92173535,603.62,603.03,1.65665845]
[1740925448410,3.8123947,603.61,603.03,1.65665845]
[1740925448610,4.92173535,603.6,603.03,1.65665845]
[1740925448806,3.8123947,603.59,603.03,1.65665845]
[1740925449008,4.92173535,603.58,603.03,1.65665845]
[1740925449210,3.8123947,603.57,603.03,1.65665845]
[1740925449412,2.4335738,603.56,603.03,1.65665845]
[1740925449608,2.4335738,603.55,603.03,1.65665845]
[1740925449907,3.54291445,603.54,603.03,1.65665845]
[1740925450110,3.8123947,603.53,603.03,1.65665845]
[1740925450304,3.8123947,603.52,603.03,1.65665845]
[1740925450509,3.8123947,603.51,603.03,1.65665845]
[1740925450704,3.8123947,603.5,603.03,1.65665845]
[1740925450904,3.8123947,603.49,603.03,1.65665845]
[1740925451108,1.37457369,603.48,603.03,1.65665845]
[1740925451317,2.42598914,603.47,603.03,1.65665845]
[1740925451611,1.56688059,603.46,603.03,1.65665845]
[1740925451807,1.56688059,603.45,603.03,1.65665845]
[1740925452012,2.67622124,603.44,603.03,1.65665845]
[1740925452209,1.56688059,603.43,603.03,1.65665845]
[1740925452418,3.5344229,603.43,603.03,1.65665845]
[1740925452618,1.10934065,603.78,603.03,1.65665845]
[1740925452914,3.79667769,603.77,603.03,1.65665845]
[1740925453114,3.79683981,603.76,603.03,1.65665845]
[1740925453317,3.79683981,603.75,603.03,1.65665845]
[1740925453515,3.79683981,603.74,603.03,1.65665845]
[1740925453822,4.90618046,603.73,603.03,1.65665845]
[1740925454017,3.79683981,603.72,603.03,1.65665845]
[1740925454317,4.10149466,603.71,603.03,1.65665845]
[1740925454512,3.79683981,603.7,603.03,1.65665845]
[1740925454812,3.79683981,603.69,603.03,1.65665845]
[1740925455016,3.79683981,603.68,603.03,1.65665845]
[1740925455217,3.79683981,603.67,603.03,1.65665845]
[1740925455409,4.90618046,603.66,603.03,1.65665845]
[1740925455610,3.79683981,603.65,603.03,1.65665845]
[1740925455812,2.42357508,603.64,603.03,1.65665845]
[1740925456013,2.67462528,603.63,603.03,1.65665845]
[1740925456313,2.67462528,603.62,603.03,1.65665845]
[1740925456510,2.42357508,603.61,603.03,1.65665845]
[1740925456815,1.9676311,603.61,603.03,1.65665845]
[1740925457009,1.96673074,603.61,603.03,1.65665845]
[1740925457214,1.10934065,603.61,603.03,1.65665845]
[1740925457415,1.10934065,603.6,603.03,1.65665845]
[1740925457810,1.10934065,603.59,603.03,1.65665845]
[1740925458518,4.90235211,603.73,603.03,1.65665845]
[1740925458711,2.93562137,603.72,603.03,1.65665845]
[1740925458915,2.42123126,603.71,603.03,1.65665845]
[1740925459116,0.85742626,603.71,603.03,1.65665845]
[1740925459314,1.10934065,603.7,603.03,1.65665845]
[1740925459919,3.79313337,603.84,603.03,1.65665845]
[1740925460121,3.79313337,603.83,603.03,1.65665845]
[1740925460320,3.79313337,603.82,603.03,1.65665845]
[1740925460521,3.79313337,603.81,603.03,1.65665845]
[1740925460716,3.79313337,603.8,603.03,1.65665845]
[1740925460917,4.04504776,603.79,603.03,1.65665845]
[1740925461220,2.93570711,603.78,603.03,1.65665845]
[1740925461416,1.563805,603.77,603.03,1.65665845]
[1740925461628,1.563805,603.76,603.03,1.65665845]
[1740925461821,1.10934065,603.75,603.03,1.65665845]
[1740925462215,1.10934065,603.74,603.03,1.65665845]
[1740925462415,2.67314565,603.74,603.03,1.65665845]
[1740925462617,1.563805,603.73,603.03,1.65665845]
[1740925462820,1.10934065,603.73,603.03,1.65665845]
[1740925463223,1.10934065,603.72,603.03,1.65665845]
[1740925463415,1.10934065,603.71,603.03,1.65665845]
[1740925463615,1.10934065,603.7,603.03,1.65665845]
[1740925464022,4.04504776,603.8,603.03,1.65665845]
[1740925464226,1.563805,603.79,603.03,1.65665845]
[1740925464718,1.10934065,603.78,603.03,2.83065845]
[1740925464920,2.67314565,603.78,603.03,2.83065845]
[1740925465118,1.563805,603.77,603.03,2.83065845]
[1740925465323,1.10934065,603.78,603.03,2.83065845]
[1740925465519,1.10934065,603.77,603.03,2.83065845]
[1740925465920,1.10934065,603.76,603.03,2.83065845]
[1740925466226,1.10934065,603.75,603.03,2.83065845]
[1740925467023,2.93761429,603.84,603.03,2.83065845]
[1740925467327,2.67314565,603.83,603.03,2.83065845]
[1740925467527,1.563805,603.82,603.03,2.83065845]
[1740925467727,2.67314565,603.81,603.03,2.83065845]
[1740925467927,1.563805,603.8,603.03,2.83065845]
[1740925468121,1.10934065,603.8,603.03,2.83065845]
[1740925468728,1.10934065,603.79,603.03,2.83065845]
[1740925469129,1.10934065,603.78,603.03,2.83065845]
[1740925469530,1.56640347,603.82,603.03,2.83065845]
[1740925469725,1.10934065,603.83,603.03,2.83065845]
[1740925469924,1.56640347,603.93,603.03,2.83065845]
[1740925470127,1.56640347,603.92,603.03,2.83065845]
[1740925470325,1.56640347,603.91,603.03,2.83065845]
[1740925470531,1.10934065,603.9,603.03,2.83065845]
[1740925470930,1.10934065,603.89,603.03,2.83065845]
[1740925471433,1.10934065,603.88,603.03,2.83065845]
[1740925471628,2.67574412,603.88,603.03,2.83065845]
[1740925471827,2.67574412,603.87,603.03,2.83065845]
[1740925472026,2.67574412,603.86,603.03,2.83065845]
[1740925472229,1.56640347,603.85,603.03,2.83065845]
[1740925472430,4.04998196,603.93,603.03,2.83065845]
[1740925472627,2.94064131,603.92,603.03,2.83065845]
[1740925472826,1.56640347,603.91,603.03,2.83065845]
[1740925473027,1.56640347,603.92,603.03,2.83065845]
[1740925473336,2.67574412,603.91,603.03,2.83065845]
[1740925473537,1.56640347,603.9,603.03,2.83065845]
[1740925473729,1.10934065,603.89,603.03,2.83065845]
[1740925474338,1.10934065,603.88,603.03,2.83065845]
[1740925474738,1.10934065,603.87,603.03,2.83065845]
[1740925475430,2.67574412,603.93,603.03,2.83065845]
[1740925475634,2.67574412,603.92,603.03,2.83065845]
[1740925475836,1.56640347,603.91,603.03,2.83065845]
[1740925476130,1.10934065,603.9,603.03,2.83065845]
[1740925476436,2.67574412,603.9,603.03,2.83065845]
[1740925476636,2.67574412,603.89,603.03,2.83065845]
[1740925476832,1.56640347,603.88,603.03,2.83065845]
[1740925477033,1.10934065,603.87,603.03,2.83065845]
[1740925477431,1.10934065,603.86,603.03,2.83065845]
[1740925478336,1.10934065,603.85,603.03,2.83065845]
[1740925479037,1.10934065,603.84,603.03,2.83065845]
[1740925479432,1.10934065,603.83,603.03,2.83065845]
[1740925479836,1.10934065,603.82,603.03,2.83065845]
[1740925480433,1.56640347,603.88,603.03,2.83065845]
[1740925480836,1.56640347,603.87,603.03,2.83065845]
[1740925481036,1.10934065,603.86,603.03,2.83065845]
[1740925481236,1.56640347,603.88,603.03,2.83065845]
[1740925481237,1.10934065,603.85,603.03,2.83065845]
[1740925481834,1.10934065,603.84,603.03,2.83065845]
[1740925482340,2.94071678,603.91,603.03,2.83065845]
[1740925482533,1.10498471,603.83,603.03,2.83065845]
[1740925482738,2.67178949,603.89,603.03,2.83065845]
[1740925482935,1.56680478,603.88,603.03,2.83065845]
[1740925483140,1.10498471,603.88,603.03,2.83065845]
[1740925483638,1.10498471,603.87,603.03,2.83065845]
[1740925483839,2.6718083,603.93,603.03,2.83065845]
[1740925484039,1.56682359,603.92,603.03,2.83065845]
[1740925484236,1.10498471,603.93,603.03,2.83065845]
[1740925484538,2.67212678,603.92,603.03,2.83065845]
[1740925484735,1.56714207,603.91,603.03,2.83065845]
[1740925484937,2.67212678,603.9,603.03,2.83065845]
[1740925485137,1.56714207,603.89,603.03,2.83065845]
[1740925485536,1.10498471,603.88,603.03,2.83065845]
[1740925486138,1.10498471,603.87,603.03,2.83065845]
[1740925486638,1.10498471,603.86,603.03,2.83065845]
[1740925487340,1.10498471,603.85,603.03,2.83065845]
[1740925487536,1.10498471,603.84,603.03,2.83065845]
[1740925488140,1.10498471,603.83,603.03,2.83065845]
[1740925489046,1.10498471,603.82,603.03,2.83065845]
[1740925489242,1.10498471,603.81,603.03,2.83065845]
[1740925490043,1.10498471,603.8,603.03,2.83065845]
[1740925490541,2.67253713,603.84,603.03,2.83065845]
[1740925490747,1.56755242,603.83,603.03,2.83065845]
[1740925490939,1.10498471,603.84,603.03,2.83065845]
[1740925491143,1.10498471,603.83,603.03,2.83065845]
[1740925491543,1.10498471,603.82,603.03,2.83065845]
[1740925492047,1.72999486,604.02,603.03,2.83065845]
[1740925492048,1.10498471,603.81,603.03,2.83065845]
[1740925492248,1.10498471,603.8,603.03,2.83065845]
[1740925493042,1.10498471,603.79,603.03,2.83065845]
[1740925493440,1.56755242,603.84,603.03,2.83065845]
[1740925493742,2.67253713,603.83,603.03,2.83065845]
[1740925493947,1.56755242,603.82,603.03,2.83065845]
[1740925494141,1.10498471,603.82,603.03,2.83065845]
[1740925494546,2.67383299,603.95,603.03,2.83065845]
[1740925494846,1.56884828,603.94,603.03,2.83065845]
[1740925495044,2.67383299,603.93,603.03,2.83065845]
[1740925495241,1.56884828,603.92,603.03,2.83065845]
[1740925495543,1.56884828,603.91,603.03,2.83065845]
[1740925495741,2.67383299,603.9,603.03,2.83065845]
[1740925495943,1.56884828,603.89,603.03,2.83065845]
[1740925496144,1.56884828,603.88,603.03,2.83065845]
[1740925496447,2.67383299,603.87,603.03,2.83065845]
[1740925496641,1.56884828,603.86,603.03,2.83065845]
[1740925496852,1.10498471,603.86,603.03,2.83065845]
[1740925497051,1.72978705,604.11,603.03,2.83065845]
[1740925497052,2.67379839,603.94,603.03,2.83065845]
[1740925497252,1.56881368,603.93,603.03,2.83065845]
[1740925497451,1.3760398,604.09,603.03,2.83065845]
[1740925497452,2.67379839,603.92,603.03,2.83065845]
[1740925497759,1.56881368,603.91,603.03,2.83065845]
[1740925497954,1.10498471,603.9,603.03,2.83065845]
[1740925498649,1.10498471,603.89,603.03,2.83065845]
[1740925499247,1.10498471,603.88,603.03,2.83065845]
[1740925499846,1.56881368,603.97,603.03,2.83065845]
[1740925500051,1.10498471,603.98,603.03,2.83065845]
[1740925500247,1.10498471,603.96,603.03,2.83065845]
[1740925500651,1.10498471,603.95,603.03,2.83065845]
[1740925501356,1.10498471,603.94,603.03,2.83065845]
[1740925501751,1.56881368,604.07,603.03,2.83065845]
[1740925501951,1.10498471,604.08,603.03,2.83065845]
[1740925501952,1.56881368,604.06,603.03,2.83065845]
[1740925502155,2.67379839,604.05,603.03,2.83065845]
[1740925502456,1.56881368,604.04,603.03,2.83065845]
[1740925502856,1.10498471,604.05,603.03,2.83065845]
[1740925503253,1.10498471,604.04,603.03,2.83065845]
[1740925503653,1.10498471,604.03,603.03,2.83065845]
[1740925503852,1.10498471,604.03,603.06,1.23544932]
[1740925504057,2.67379839,604.04,603.08,0.33163096]
[1740925504253,1.56881368,604.03,603.08,0.33163096]
[1740925504456,1.10498471,604.04,603.08,0.33163096]
[1740925504857,1.56820547,604.17,603.08,0.33163096]
[1740925505057,1.56820547,604.16,603.08,0.33163096]
[1740925505258,1.56820547,604.15,603.08,0.33163096]
[1740925505462,1.56820547,604.14,603.08,0.33163096]
[1740925505860,1.56820547,604.14,603.09,1.23544932]
[1740925506059,1.10498471,604.13,603.11,0.33161446]
[1740925506259,2.67319018,604.13,603.11,0.33161446]
[1740925506461,1.37514068,604.35,603.11,0.33161446]
[1740925506653,1.56795699,604.34,603.11,0.33161446]
[1740925506860,1.56795699,604.33,603.11,0.33161446]
[1740925507159,1.56795699,604.32,603.11,0.33161446]
[1740925507359,1.56795699,604.31,603.12,3.643]
[1740925507559,1.56795699,604.3,603.14,0.33159797]
[1740925507961,1.56795699,604.29,603.14,0.33159797]
[1740925508259,1.56795699,604.28,603.14,0.33159797]
[1740925508455,1.10498471,604.33,603.14,0.33159797]
[1740925508660,1.56725452,604.32,603.14,0.33159797]
[1740925508863,1.56708177,604.31,603.14,0.33159797]
[1740925509062,2.67206648,604.3,603.14,0.33159797]
[1740925509357,1.56708177,604.29,603.14,0.33159797]
[1740925509556,1.56708177,604.28,603.14,0.33159797]
[1740925509761,1.56708177,604.27,603.14,0.33159797]
[1740925509959,1.10498471,604.28,603.14,0.33159797]
[1740925509960,1.56708177,604.26,603.14,0.33159797]
[1740925510260,2.67206648,604.25,603.14,0.33159797]
[1740925510461,1.56708177,604.24,603.14,0.33159797]
[1740925510661,1.56708177,604.23,603.14,0.33159797]
[1740925510956,1.10498471,604.24,603.14,0.33159797]
[1740925511158,1.10498471,604.22,603.14,0.33159797]
[1740925511361,2.67206648,604.22,603.14,0.33159797]
[1740925511662,1.56708177,604.21,603.14,0.33159797]
[1740925511862,1.10498471,604.22,603.14,0.33159797]
[1740925512063,1.10498471,604.2,603.14,0.33159797]
[1740925512459,1.10498471,604.19,603.14,0.33159797]
[1740925512856,1.10498471,604.18,603.14,0.33159797]
[1740925513663,1.10498471,604.17,603.14,0.33159797]
[1740925514265,1.10498471,604.16,603.14,0.33159797]
[1740925515059,1.10498471,604.15,603.14,0.33159797]
[1740925515459,1.10498471,604.14,603.14,0.33159797]
[1740925516160,1.10498471,604.13,603.14,0.33159797]
[1740925516763,1.56567664,604.31,603.14,0.33159797]
[1740925516959,1.56567664,604.3,603.14,0.33159797]
[1740925517161,2.67066135,604.29,603.14,0.33159797]
[1740925517363,1.56567664,604.28,603.14,0.33159797]
[1740925517765,1.10498471,604.27,603.14,0.33159797]
[1740925518060,1.10498471,604.26,603.14,0.33159797]
[1740925518466,1.10498471,604.25,603.14,0.33159797]
[1740925519362,1.10498471,604.24,603.14,0.33159797]
[1740925519761,1.10498471,604.23,603.14,0.33159797]
[1740925520166,1.10498471,604.22,603.14,0.33159797]
[1740925520565,1.10498471,604.21,603.14,0.33159797]
[1740925520966,1.56590474,604.24,603.14,0.33159797]
[1740925521365,1.10498471,604.23,603.14,0.33159797]
[1740925521569,2.67088945,604.23,603.14,0.33159797]
[1740925521761,1.56590474,604.22,603.14,0.33159797]
[1740925521965,1.10498471,604.23,603.14,0.33159797]
[1740925522161,2.93905225,604.28,603.14,0.33159797]
[1740925522162,1.10498471,604.22,603.14,0.33159797]
[1740925522763,2.67088945,604.21,603.14,0.33159797]
[1740925523068,1.56590474,604.2,603.14,0.33159797]
[1740925523273,1.56590474,604.19,603.14,0.33159797]
[1740925523477,1.56590474,604.18,603.14,0.33159797]
[1740925523678,1.56590474,604.17,603.14,0.33159797]
[1740925523974,1.10498471,604.17,603.14,0.33159797]
[1740925524574,1.56560738,604.4,603.14,0.33159797]
[1740925524768,1.56560738,604.39,603.14,0.33159797]
[1740925524966,1.56560738,604.38,603.14,0.33159797]
[1740925525176,1.56560738,604.37,603.14,0.33159797]
[1740925525368,1.56560738,604.36,603.14,0.33159797]
[1740925525573,1.56560738,604.35,603.14,0.33159797]
[1740925525873,2.67059209,604.34,603.14,0.33159797]
[1740925526073,1.56560738,604.33,603.14,0.33159797]
[1740925526271,1.56560738,604.32,603.14,0.33159797]
[1740925526469,1.56560738,604.31,603.14,0.33159797]
[1740925526671,1.56560738,604.3,603.14,0.33159797]
[1740925526868,1.56560738,604.29,603.14,0.33159797]
[1740925527176,1.56560738,604.28,603.14,0.33159797]
[1740925527375,1.56560738,604.27,603.14,0.33159797]
[1740925527675,1.10498471,604.28,603.14,0.33159797]
[1740925527870,1.10498471,604.26,603.14,0.33159797]
[1740925528270,1.72897777,604.45,603.14,0.33159797]
[1740925528271,1.10498471,604.25,603.14,0.33159797]
[1740925528675,1.10498471,604.24,603.14,0.33159797]
[1740925528974,2.67059209,604.41,603.14,0.33159797]
[1740925529170,1.56560738,604.4,603.14,0.33159797]
[1740925529374,2.67059209,604.39,603.14,0.33159797]
[1740925529575,1.56560738,604.38,603.15,1.216]
[1740925529774,1.56560738,604.37,603.15,1.216]
[1740925529973,2.67059209,604.36,603.15,1.216]
[1740925530176,1.56560738,604.35,603.17,0.33158147]
[1740925530374,2.67059209,604.34,603.17,0.33158147]
[1740925530573,1.56560738,604.33,603.17,0.33158147]
[1740925530776,1.56560738,604.32,603.17,0.33158147]
[1740925530979,1.56560738,604.31,603.17,0.33158147]
[1740925531179,1.56550647,604.3,603.17,0.33158147]
[1740925531373,1.56543174,604.29,603.17,0.33158147]
[1740925531573,1.56543174,604.28,603.17,0.33158147]
[1740925531779,2.67041645,604.27,603.17,0.33158147]
[1740925531978,1.56543174,604.26,603.17,0.33158147]
[1740925532173,2.67041645,604.26,603.17,0.33158147]
[1740925532377,1.56543174,604.25,603.17,0.33158147]
[1740925532577,1.10498471,604.25,603.17,0.33158147]
[1740925532981,1.10498471,604.24,603.17,0.33158147]
[1740925533382,1.10498471,604.23,603.17,0.33158147]
[1740925533582,1.10498471,604.23,603.17,2.28758147]
[1740925533786,1.10498471,604.22,603.17,2.28758147]
[1740925534078,1.10498471,604.21,603.17,2.28758147]
[1740925534584,1.10498471,604.2,603.17,2.28758147]
[1740925535576,1.10498471,604.19,603.17,2.28758147]
[1740925536182,1.10498471,604.18,603.17,2.28758147]
[1740925536578,1.10498471,604.17,603.17,2.28758147]
[1740925537083,1.10498471,604.16,603.17,2.28758147]
[1740925537683,1.10498471,604.15,603.17,2.28758147]
[1740925538082,1.10498471,604.14,603.17,2.28758147]
[1740925538683,1.10498471,604.13,603.17,2.28758147]
[1740925539184,1.56571394,604.29,603.17,2.28758147]
[1740925539379,1.56571394,604.28,603.17,2.28758147]
[1740925539582,2.66977446,604.27,603.17,2.28758147]
[1740925539781,1.56571394,604.26,603.17,2.28758147]
[1740925539980,1.56571394,604.25,603.17,2.28758147]
[1740925540179,1.56569759,604.24,603.17,2.28758147]
[1740925540380,1.56569759,604.23,603.17,2.28758147]
[1740925540583,1.56569759,604.22,603.17,2.28758147]
[1740925540784,1.56569759,604.21,603.17,2.28758147]
[1740925540983,1.10406052,604.22,603.17,2.28758147]
[1740925541188,1.56593998,604.21,603.17,2.28758147]
[1740925541384,1.56593998,604.2,603.17,2.28758147]
[1740925541586,1.56593998,604.19,603.17,2.28758147]
[1740925541783,1.56593998,604.18,603.17,2.28758147]
[1740925541988,1.10406052,604.18,603.17,2.28758147]
[1740925542180,2.6700005,604.17,603.17,2.28758147]
[1740925542382,1.56593998,604.16,603.17,2.28758147]
[1740925542587,1.10406052,604.15,603.17,2.28758147]
[1740925542988,1.10406052,604.14,603.17,2.28758147]
[1740925543383,1.72906367,604.39,603.17,2.28758147]
[1740925543384,1.10406052,604.13,603.17,2.28758147]
[1740925543788,1.72906367,604.39,603.17,2.28758147]
[1740925543789,4.04335115,604.28,603.17,2.28758147]
[1740925543987,2.93929063,604.27,603.17,2.28758147]
[1740925544183,1.56612713,604.26,603.17,2.28758147]
[1740925544382,1.56612713,604.25,603.17,2.28758147]
[1740925544783,1.56612713,604.24,603.17,2.28758147]
[1740925544982,1.56612713,604.23,603.17,2.28758147]
[1740925545186,1.56612713,604.22,603.17,2.28758147]
[1740925545382,1.56612713,604.23,603.17,2.28758147]
[1740925545689,1.10406052,604.21,603.17,2.28758147]
[1740925546789,2.93929063,604.34,603.17,2.28758147]
[1740925546985,1.56612713,604.33,603.17,2.28758147]
[1740925547185,1.56612713,604.32,603.17,2.28758147]
[1740925547489,1.56612713,604.31,603.17,2.28758147]
[1740925547690,1.56612713,604.3,603.17,2.28758147]
[1740925547889,2.67018765,604.29,603.17,2.28758147]
[1740925548189,2.67018765,604.28,603.17,2.28758147]
[1740925548384,1.56612713,604.27,603.17,2.28758147]
[1740925548590,1.56612713,604.26,603.17,2.28758147]
[1740925548789,1.56612713,604.25,603.17,2.28758147]
[1740925548990,1.56612713,604.24,603.17,2.28758147]
[1740925549288,1.56612713,604.23,603.17,2.28758147]
[1740925549587,2.67018765,604.22,603.17,2.28758147]
[1740925549789,1.56612713,604.21,603.17,4.08158147]
[1740925550183,1.10406052,604.2,603.17,4.08158147]
[1740925550383,1.56612713,604.19,603.17,4.08158147]
[1740925550787,1.10406052,604.2,603.17,4.08158147]
[1740925550989,1.10406052,604.18,603.17,4.08158147]
[1740925551188,1.10406052,604.17,603.17,4.08158147]
[1740925551389,1.56612713,604.16,603.17,4.08158147]
[1740925551586,1.56612713,604.15,603.17,4.08158147]
[1740925551782,1.56612713,604.14,603.17,4.08158147]
[1740925551991,1.56612713,604.13,603.17,4.08158147]
[1740925552191,1.10406052,604.12,603.17,4.08158147]
[1740925552391,1.56612713,604.11,603.17,4.08158147]
[1740925552590,2.67018765,604.1,603.17,4.08158147]
[1740925552789,1.56794093,604.09,603.17,4.08158147]
[1740925552986,1.56794093,604.08,603.17,4.08158147]
[1740925553185,1.56794093,604.07,603.17,4.08158147]
[1740925553389,1.56794093,604.06,603.17,4.08158147]
[1740925553688,1.56794093,604.05,603.17,4.08158147]
[1740925553891,2.67200145,604.04,603.17,4.08158147]
[1740925554091,1.56794093,604.03,603.17,4.08158147]
[1740925554294,1.56794093,604.02,603.17,4.08158147]
[1740925554593,2.67200145,604.01,603.17,4.08158147]
[1740925554784,1.56876622,604.0,603.17,4.08158147]
[1740925554986,1.56876622,603.99,603.17,4.08158147]
[1740925555186,1.56876622,603.98,603.17,4.08158147]
[1740925555386,1.56876622,603.97,603.17,4.08158147]
[1740925555584,1.10406052,603.96,603.17,4.08158147]
[1740925555992,1.37407865,604.13,603.17,4.08158147]
[1740925555993,1.10406052,603.95,603.17,4.08158147]
[1740925556385,1.10406052,603.94,603.17,4.08158147]
[1740925556591,1.10406052,603.93,603.17,4.08158147]
[1740925557393,1.10406052,603.92,603.17,4.08158147]
[1740925557788,1.37407865,604.28,603.17,4.08158147]
[1740925557789,1.10406052,603.91,603.17,4.08158147]
[1740925558193,1.10406052,603.9,603.17,4.08158147]
[1740925559094,2.94501707,604.21,603.17,4.08158147]
[1740925559295,4.05325518,604.2,603.17,4.08158147]
[1740925559490,2.94501707,604.19,603.17,4.08158147]
[1740925559695,2.94501707,604.18,603.17,4.08158147]
[1740925559892,4.05325518,604.17,603.17,4.08158147]
[1740925560197,2.94501707,604.16,603.17,4.08158147]
[1740925560397,2.94501707,604.15,603.17,4.08158147]
[1740925560592,4.05325518,604.14,603.17,4.08158147]
[1740925560792,2.94501707,604.13,603.17,4.08158147]
[1740925560996,2.94501707,604.12,603.17,4.08158147]
[1740925561293,4.05325518,604.11,603.17,4.08158147]
[1740925561493,2.94501707,604.1,603.17,4.08158147]
[1740925561692,2.94501707,604.09,603.17,4.08158147]
[1740925561898,2.94501707,604.08,603.17,4.08158147]
[1740925562096,2.94501707,604.07,603.17,4.08158147]
[1740925562296,2.94501707,604.06,603.17,4.08158147]
[1740925562498,2.94501707,604.05,603.17,4.08158147]
[1740925562692,1.57093842,604.04,603.17,4.08158147]
[1740925562894,2.94501707,604.03,603.17,4.08158147]
[1740925563095,2.67917653,604.02,603.17,4.08158147]
[1740925563296,1.57093842,604.01,603.17,4.08158147]
[1740925563498,1.57093842,604.0,603.17,4.08158147]
[1740925563798,1.57093842,603.99,603.17,4.08158147]
[1740925563997,1.57093842,603.98,603.17,4.08158147]
[1740925564201,2.67917653,603.97,603.17,4.08158147]
[1740925564403,1.57093842,603.96,603.17,4.08158147]
[1740925564605,2.67917653,603.95,603.17,4.08158147]
[1740925564798,2.67917653,603.94,603.17,4.08158147]
[1740925565005,1.57093842,603.93,603.17,4.08158147]
[1740925565201,2.67917653,603.92,603.17,4.08158147]
[1740925565405,2.67917653,603.91,603.17,4.08158147]
[1740925565605,1.57093842,603.9,603.17,4.08158147]
[1740925565907,1.72950049,604.22,603.17,4.08158147]
[1740925565908,2.67917653,603.89,603.17,4.08158147]
[1740925566207,1.57093842,603.88,603.17,4.08158147]
[1740925566401,1.57093842,603.87,603.17,4.08158147]
[1740925566598,1.10823811,603.86,603.17,4.08158147]
[1740925566999,1.37936427,604.1,603.17,4.08158147]
[1740925567203,2.95228858,604.09,603.17,4.08158147]
[1740925567399,2.95228858,604.08,603.17,4.08158147]
[1740925567599,2.95228858,604.07,603.17,4.08158147]
[1740925567902,2.95228858,604.06,603.17,4.08158147]
[1740925568105,2.95228858,604.05,603.17,4.08158147]
[1740925568307,4.06142678,604.04,603.17,4.08158147]
[1740925568505,2.95228858,604.03,603.17,4.08158147]
[1740925568703,1.57292431,604.02,603.17,4.08158147]
[1740925568904,1.57289688,604.01,603.17,4.08158147]
[1740925569101,1.1091382,604.02,603.17,4.08158147]
[1740925570903,1.37975092,604.36,603.17,4.08158147]
[1740925571102,1.72917823,604.41,603.17,4.08158147]
[1740925571307,4.06249216,604.4,603.17,4.08158147]
[1740925571507,2.95308537,604.39,603.17,4.08158147]
[1740925571707,2.95308537,604.38,603.17,4.08158147]
[1740925571908,4.06249216,604.37,603.17,4.08158147]
[1740925572207,2.95308537,604.36,603.17,4.08158147]
[1740925572407,2.95308537,604.35,603.17,4.08158147]
[1740925572707,2.95308537,604.34,603.17,4.08158147]
[1740925572901,4.06249216,604.33,603.17,4.08158147]
[1740925573107,2.95308537,604.32,603.17,4.08158147]
[1740925573302,1.10940679,604.33,603.17,4.08158147]
[1740925573303,2.95308537,604.31,603.17,4.08158147]
[1740925573505,2.95308537,604.3,603.17,4.08158147]
[1740925573706,2.95308537,604.29,603.17,4.08158147]
[1740925573907,2.95308537,604.28,603.17,4.08158147]
[1740925574103,2.95308537,604.27,603.17,4.08158147]
[1740925574302,2.95308537,604.26,603.17,4.08158147]
[1740925574503,4.06249216,604.25,603.17,4.08158147]
[1740925574709,2.95308537,604.24,603.17,4.08158147]
[1740925574911,1.57329815,604.23,603.17,4.08158147]
[1740925575207,1.5739261,604.22,603.17,4.08158147]
[1740925575408,1.5739261,604.21,603.17,4.08158147]
[1740925575609,1.5739261,604.2,603.17,4.08158147]
[1740925575808,1.5739261,604.19,603.17,4.08158147]
[1740925576010,2.68333289,604.18,603.17,4.08158147]
[1740925576207,1.5739261,604.17,603.17,4.08158147]
[1740925576411,1.5739261,604.16,603.17,4.08158147]
[1740925576706,1.10940679,604.16,603.17,4.08158147]
[1740925577310,1.10940679,604.15,603.17,4.08158147]
[1740925577510,1.38033779,604.33,603.17,4.08158147]
[1740925577811,4.06384092,604.32,603.17,4.08158147]
[1740925578008,1.57380545,604.31,603.17,4.08158147]
[1740925578210,1.57380545,604.3,603.17,4.08158147]
[1740925578409,1.10969768,604.31,603.17,4.08158147]
[1740925578410,1.57380545,604.29,603.17,4.08158147]
[1740925578606,1.57380545,604.28,603.17,4.08158147]
[1740925578811,2.68350313,604.27,603.17,4.08158147]
[1740925579011,1.57380545,604.26,603.17,4.08158147]
[1740925579308,1.10969768,604.26,603.17,4.08158147]
[1740925579511,4.06227679,604.82,603.17,4.08158147]
[1740925579711,2.95257911,604.81,603.17,4.08158147]
[1740925580015,2.95257911,604.8,603.17,4.08158147]
[1740925580311,2.95257911,604.79,603.17,4.08158147]
[1740925580510,1.57313185,604.78,603.19,1.23544932]
[1740925580710,2.68282953,604.77,603.19,1.23544932]
[1740925580906,1.57313185,604.76,603.19,1.23544932]
[1740925581114,1.57313185,604.75,603.21,0.33155949]
[1740925581312,1.57313185,604.74,603.21,0.33155949]
[1740925581612,2.68282953,604.73,603.21,0.33155949]
[1740925581812,1.57313185,604.72,603.21,0.33155949]
[1740925582112,1.57313185,604.71,603.21,0.33155949]
[1740925582411,1.57313185,604.7,603.21,0.33155949]